{"text_format":"1","workbook":"xlsx","n_sheets":3,"sheets":["限度額設定型貿易保険（船積後）入金通知書","別紙","記入要領"],"not_rendered":{"charts":0,"images":0,"macros":0,"external_links":1,"defined_names":8,"comments":0,"pivot_tables":0},"unopened":[],"bounds":{"document_bytes":16777216,"sheet_cells":100000,"rows_first":2000,"rows_last":500,"rows_between":2000,"halvings":0,"cell_chars":16384,"cell_head_chars":4096},"cells_cut":0,"cells_raw":0,"read":"whole","date_system":"1900"}

{"sheet":"限度額設定型貿易保険（船積後）入金通知書","index":0,"n_rows":33,"n_cols":30,"rows_kept":33,"cut":false,"hidden":false,"merged":[[30,20,30,29],[21,1,21,6],[19,1,19,3],[19,4,19,6],[21,7,21,16],[29,20,29,29],[29,0,30,0],[29,1,29,4],[29,5,29,15],[29,16,29,19],[22,7,22,16],[30,1,30,4],[30,5,30,15],[30,16,30,19],[2,0,2,29],[4,20,4,22],[4,24,4,25],[4,27,4,28],[9,17,9,18],[9,19,9,29],[7,29,8,29],[7,21,7,28],[8,21,8,28],[17,23,17,29],[18,18,18,22],[20,18,20,22],[18,1,18,6],[11,23,11,29],[14,1,14,5],[17,1,17,6],[20,7,20,16],[17,7,17,16],[20,1,20,6],[10,17,10,29],[11,17,11,22],[32,20,32,22],[32,24,32,25],[32,27,32,28],[14,6,14,29],[16,0,16,29],[26,0,26,29],[24,0,24,29],[25,0,25,29],[27,0,27,29],[22,1,22,6],[19,17,19,29],[19,7,19,16],[18,23,18,29],[21,18,21,22]]}
["別紙様式第９－２"]
[]
["限度額設定型貿易保険（船積後）入金通知書"]
[]
[null,null,null,null,null,null,null,null,null,null,null,null,null,null,null,null,null,"提出日",null,null,null,null,null,"年",null,null,"月",null,null,"日"]
["株式会社日本貿易保険　御中"]
[null," "]
[null,null,null,null,null,null,null,null,null,null,null,null,null,null,null,null,null,"被保険者名",null,null,null,null,null,null,null,null,null,null,null,"印"]
[null,null,null,null,null,null,null,null,null,null,null,null,null,null,null,null,null,"代表者氏名"]
[null,null,null,null,null,null,null,null,null,null,null," ",null,null,null,null,null,"住所"]
[]
[null,null,null,null,null,null,null,null,null,null,null,null,null,null,null,null,null,"保険利用者コード"]
[]
[]
[1,"保険証券番号"]
[]
["輸出契約等の情報及び入金額　（「別紙」を作成する場合は記入不要）"]
[{"$f":"A15+1","v":2},"輸出契約等番号",null,null,null,null,null,null,null,null,null,null,null,null,null,null,null,{"$f":"A18+1","v":3},"輸出契約等締結日"]
[{"$f":"R18+1","v":4},"事故発生日（決済期限）",null,null,null,null,null,null,null,null,null,null,null,null,null,null,null,{"$f":"A19+1","v":5},"入金日"]
[{"$f":"R19+1","v":6},"契約通貨",null,null,null,null,null,"入金額の内訳（対外債権ベース）",null,null,null,null,null,null,null,null,null,"未入金額の状況（対外債権ベース）"]
[{"$f":"A20+1","v":7},"入金額（契約元本）",null,null,null,null,null,null,null,null,null,null,null,null,null,null,null,10,"未入金額（契約元本）"]
[{"$f":"A21+1","v":8},"入金額（契約金利）",null,null,null,null,null,null,null,null,null,null,null,null,null,null,null,11,"未入金額（契約金利）"]
[9,"入金額（延滞金利）"]
[]
["入金状況及び今後の回収見込等"]
[]
["（本通知書の提出が入金日から1ヵ月を超えた場合は、通知書の提出が遅滞した理由を記入してください。）\n"]
[]
[]
["連絡先","担当部署名",null,null,null,null,null,null,null,null,null,null,null,null,null,null,"担当者名"]
[null,"E-mail アドレス",null,null,null,null,null,null,null,null,null,null,null,null,null,null,"電話番号"]
[]
[null,null,null,null,null,null,null,null,null,null,null,null,null,"NEXI記入欄",null,null,null,"受理日：",null,null,null,null,null,"年","　",null,"月",null,null,"日"]

{"sheet":"別紙","index":1,"n_rows":36,"n_cols":12,"rows_kept":36,"cut":false,"hidden":false,"merged":[[13,1,13,6],[13,7,13,8],[13,9,13,10],[5,1,5,2],[6,1,6,2],[7,1,7,2],[10,1,10,2],[12,1,12,11]]}
[null,"別紙"]
[]
[]
[]
[]
[null,"証　券　番　号",null,null,null,null,null,null,null,null,"　被保険者シッパーコード"]
[null,"保険契約締結日"]
[null,"　"]
[]
[]
[null,"入金通知日"]
[]
[null,"入金通知"]
[null,null,null,null,null,null,null,"契約元本",null,"契約金利",null,"延滞金利"]
[null,"事故通番","事故発生日\n（決済期限）","輸出契約等番号","輸出契約等締結日","通貨コード","入金日","入金額","未入金残額","入金額","未入金残額","入金額"]
[null,1]
[null,2]
[null,3]
[null,4]
[null,5]
[null,6]
[null,7]
[null,8]
[null,9]
[null,10]
[null,11]
[null,12]
[null,13]
[null,14]
[null,15]
[null,16]
[null,17]
[null,18]
[null,19]
[null,20]
[null,null,null,null,null,null,null,{"$f":"SUM(H16:H35)","v":0},{"$f":"SUM(I16:I35)","v":0},{"$f":"SUM(J16:J35)","v":0},{"$f":"SUM(K16:K35)","v":0},{"$f":"SUM(L16:L35)","v":0}]

{"sheet":"記入要領","index":2,"n_rows":22,"n_cols":3,"rows_kept":22,"cut":false,"hidden":false,"merged":[[25,1,25,12],[0,0,0,12],[1,0,1,12],[3,2,3,12],[5,2,5,12],[7,2,7,12],[23,1,23,12],[13,2,13,12],[15,2,15,12],[17,2,17,12],[19,2,19,12],[21,2,21,12],[9,2,9,12],[11,2,11,12]]}
["記入要領"]
["本通知書は、入金日ごとに提出してください。"]
[]
["①","提出日","日本貿易保険へ提出する日を西暦で記入してください。"]
[]
[{"$f":"CHAR(CODE(A4)+1)","v":"②"},"被保険者名\n代表者氏名\n住所","必要に応じて行を加減し記入してください。\n「被保険者名」は本通知を提出する法人名を、「代表者氏名」は「被保険者」を代表する方（代表取締役社長等）の氏名を記入し、代表者印（丸印）を押印してください。\n貿易保険に係る手続きの代理人登録をしている場合は、該当者の役職及び氏名を記載し、登録済みの代理人印を押印してください。"]
[]
[{"$f":"CHAR(CODE(A6)+1)","v":"③"},"１．保険証券番号","保険証券を確認し、記入してください。"]
[]
[{"$f":"CHAR(CODE(A8)+1)","v":"④"},"２．輸出契約等番号\n３．輸出契約等締結日","輸出契約等を確認し、記入してください。\n輸出契約等締結日は、損失等発生通知書または限度額設定型貿易保険運用規程第９条（輸出契約等の締結日）を確認し、記入してください。"]
[]
[{"$f":"CHAR(CODE(A10)+1)","v":"⑤"},"４．事故発生日\n（決済期限）","対象となる輸出契約等で今回の入金分に対応する決済期限を西暦で記入してください。\nなお、今回の入金が複数の決済期限にわたる場合は、決済期限ごとに入金通知書を提出してください。"]
[]
[{"$f":"CHAR(CODE(A12)+1)","v":"⑥"},"５．入金日","着金を確認した日を西暦で記入してください。"]
[]
[{"$f":"CHAR(CODE(A14)+1)","v":"⑦"},"６．契約通貨","保険証券に記載された通貨をご記入ください。"]
[]
[{"$f":"CHAR(CODE(A16)+1)","v":"⑧"},"７．入金額（契約元本）\n８．入金額（契約金利）\n９．入金額（延滞金利）","金額の記入において、通貨が円建ての場合には、小数点以下は記入しないでください。\n円以外の通貨建ての場合には、小数点以下２桁（３桁以下は切り捨て）まで記入してください。（以下同じ。）\n\n今回入金となった金額を表示通貨（保険証券に記載された通貨）で記入してください。\n延滞金利のみ入金があった場合は、「９．入金額（延滞金利）」に記入の上、本通知書を提出してください。"]
[]
[{"$f":"CHAR(CODE(A18)+1)","v":"⑨"},"１０．未入金額（契約元本）\n１１．未入金額（契約金利）","今回の入金後の未入金額（対外債権ベース）を記入してください。"]
[]
[{"$f":"CHAR(CODE(A20)+1)","v":"⑩"},"入金状況及び\n今後の回収見込等","今回の入金の状況や今後の回収見込みについて、バイヤーの状況等を含めできるだけ詳細に記入してください。"]